Cogmind - Beta 16 --- EXPLORER MODE // 2025.11.25 @ 16:10:31 Player: K.K.Y. Result: Destroyed by Autobeam Turret with Autobeam Performance ------------- Evolutions (0) 0 Regions Visited (3) 600 Robots Destroyed (16) 80 Value Destroyed (466) 466 Prototype IDs (1) 20 Alien Tech Used (0) 0 Bonus (-13) -13 TOTAL SCORE: 1153 Bonus ------- Follower Combat Kills 7 Friendly Fire -20 Cogmind --------- Core Integrity 0/250 Matter 192/300 Energy 100/100 System Corruption 0% Temperature Cool (12) Movement Core (250) Ox4 Location -10/Subcaves Parts ------- > --- POWER (1) -------- (None) > --- PROPULSION (2) --- (None) > --- UTILITY (3) ------ Medium Storage Unit Structural Scanner V3-11A's Pendant > --- WEAPON (2) ------- Barrage Gun > --- INVENTORY (10) --- Spiked Treads Huge Storage Unit Core Shielding Makeshift System Shield Makeshift System Restoration Module Battle Rifle Battle Rifle Peak State ------------ > --- POWER ------------ (None) > --- PROPULSION ------- (None) > --- UTILITY ---------- Medium Storage Unit Structural Scanner V3-11A's Pendant > --- WEAPON ----------- Heavy Assault Rifle Barrage Gun > --- INVENTORY -------- Spiked Treads Huge Storage Unit Core Shielding Makeshift System Restoration Module Battle Rifle Battle Rifle Mining Claw [Rating: 11] Favorites ----------- Power Ion Engine Engine Ion Engine Propulsion Light Treads Treads Light Treads Utility Medium Storage Unit Device Structural Scanner Storage Medium Storage Unit Protection Light Armor Plating Weapon Mining Laser Ballistic Gun Assault Rifle Special Weapon Mining Laser Slashing Weapon Mining Claw Build | -11 -10 -10 -10 ------- Run | Yrd Mat Min Sub Slots Evolved 1 | . 1 . . Power . | . . . . Propulsion . | . . . . Utility 1 | . 1 . . Weapon . | . . . . Parts Attached 13 | 6 . 2 5 Power 1 | 1 . . . Engine 1 | 1 . . . Core . | . . . . Reactor . | . . . . Propulsion 2 | 2 . . . Treads 2 | 2 . . . Leg . | . . . . Wheel . | . . . . Hover . | . . . . Flight . | . . . . Utility 4 | 2 . 1 1 Device 2 | . . 1 1 Storage 1 | 1 . . . Processor . | . . . . Hackware . | . . . . Protection 1 | 1 . . . Artifact . | . . . . Weapon 6 | 1 . 1 4 Energy Gun . | . . . . Energy Cannon . | . . . . Ballistic Gun 4 | 1 . . 3 Ballistic Cannon . | . . . . Launcher . | . . . . Special Weapon 1 | . . 1 . Impact Weapon . | . . . . Slashing Weapon 1 | . . . 1 Piercing Weapon . | . . . . Special Melee Weapon . | . . . . Unidentified Prototypes 1 | . . . 1 Parts Lost 7 | . . . 7 Power 1 | . . . 1 Propulsion 2 | . . . 2 Utility 1 | . . . 1 Weapon 3 | . . . 3 Highest Loss Streak 2 | . . . 2 To Critical Strikes . | . . . . Average Backups 3 | . 1 1 4 Power . | . . . . Propulsion . | . . . . Utility 1 | . 1 1 2 Weapon 1 | . . . 1 Tool/Special . | . . . . Unused Backups 7 | . . . 7 Power 1 | . . . 1 Propulsion 1 | . . . 1 Utility 4 | . . . 4 Weapon 1 | . . . 1 Tool/Special . | . . . . Average Slot Usage (%) 78 | . 75 99 67 Engine 7 | . 12 12 4 Treads 16 | . 25 25 10 Device 13 | . . 12 15 Storage 12 | . 12 12 12 Protection 5 | . 12 12 1 Ballistic Gun 12 | . 12 12 12 Special Weapon 8 | . . 11 8 Peak Build Rating 11 | 6 6 8 11 Average Rating 7 | 4 6 7 6 On Entrance 5 | . 6 6 8 Avg Prop Armor Cover (%) . | . . . . Naked Turns . | . . . . Heaviest Build 22 | 20 20 22 22 Greatest Support 40 | 40 40 40 40 Greatest Overweight (x) 5 | . . . 5 Average Overweight (x) . | . . . 1 Largest Inventory Capacity 10 | 10 10 10 10 Average Capacity 9 | 8 10 10 10 Most Carried 8 | 5 3 3 8 Average Carried 3 | . 1 1 4 Final Capacity 10 | 10 10 10 10 Final Carried 7 | . 3 3 7 Class Distribution -------------------- 100% | Hacker-Mutant Dominant Class ---------------- Hacker-Mutant | -10/Materials Hacker-Mutant | -10/Mines Hacker-Mutant | -10/Subcaves Resources | -11 -10 -10 -10 ----------- Run | Yrd Mat Min Sub Matter Collected 515 | 193 67 116 139 Remotely . | . . . . Salvage Created 376 | . 162 . 214 Parts 29 | . 10 . 19 Haulers Intercepted . | . . . . Recyclers Shooed 1 | . 1 . . Parts Field Recycled . | . . . . Retrieved Matter . | . . . . Parts Self-Destructed . | . . . . Prevented . | . . . . Parts Restored . | . . . . Kills | -11 -10 -10 -10 ------- Run | Yrd Mat Min Sub Combat Hostiles Destroyed 15 | . 5 . 10 Guns 14 | . 5 . 9 Cannons 1 | . . . 1 Classes Destroyed 5 | . 3 . 2 Watcher 1 | . 1 . . Swarmer 5 | . 2 . 3 Grunt 3 | . 3 . . Sentry 1 | . . . 1 Subdweller 6 | . . . 6 Best Kill Streak 3 | . 3 . 2 Combat Bots Only 2 | . 2 . 2 Max Kills in Single Turn 1 | . 1 . 1 Gunslinging . | . . . . Exploded . | . . . . Melee . | . . . . Uniques/NPCs Destroyed . | . . . . Combat | -11 -10 -10 -10 -------- Run | Yrd Mat Min Sub Hostile Shots Fired 177 | . 41 . 136 Missed 58 | . 17 . 41 Hits 119 | . 24 . 95 Projectile 119 | . 24 . 95 Critical Strikes 1 | . . . 1 Damage Taken 1031 | . 151 . 880 Core 252 | . 17 . 235 Absorbed by Shields . | . . . . Ignored by Resistances 620 | . 103 . 517 Core Remaining (%) 100 | 100 . . . Volleys Fired 87 | . 32 . 55 Largest 2 | . 1 . 2 Hottest 123 | . 20 . 123 Shots Fired 108 | . 32 . 76 Gun 92 | . 32 . 60 Cannon . | . . . . Launcher . | . . . . Special 16 | . . . 16 Kinetic 92 | . 32 . 60 Thermal 16 | . . . 16 Explosive . | . . . . Electromagnetic . | . . . . Robot Hit Streak 29 | . 21 . 29 Robot Miss Streak 2 | . 2 . 1 Penetration Max . | . . . . Secondary Targets . | . . . . Shots Hit Robots 75 | . 28 . 47 Core Hits 28 | . 11 . 17 Critical Kills . | . . . . Critical Parts Destroyed . | . . . . Critical Strikes . | . . . . Melee Attacks 7 | . . . 7 Impact . | . . . . Slashing 7 | . . . 7 Piercing . | . . . . Sneak Attacks . | . . . . Combat Hostiles . | . . . . Follow-up Attacks . | . . . . Damage Inflicted 1133 | . 367 . 766 Guns 917 | . 367 . 550 Cannons . | . . . . Explosions . | . . . . Melee . | . . . . Ramming . | . . . . Kinetic 917 | . 367 . 550 Thermal 216 | . . . 216 Explosive . | . . . . Electromagnetic . | . . . . Impact . | . . . . Slashing . | . . . . Piercing . | . . . . Highest Corruption . | . . . . Average Corruption . | . . . . Corruption Purged . | . . . . Corruption Blocked . | . . . . Overload Shots . | . . . . Overflow Damage . | . . . . Projectiles . | . . . . Explosions . | . . . . Melee . | . . . . Knockbacks . | . . . . Impact . | . . . . Kinetic . | . . . . Secondary . | . . . . Self-Inflicted Damage . | . . . . Shots . | . . . . Rammed . | . . . . Targets Rammed . | . . . . Kicked . | . . . . Crushed . | . . . . Highest Temperature 2 | . 2 . 1 Average Temperature 1 | . 2 . 1 Received Heat Transfer 477 | . 63 . 414 Siege Activations . | . . . . Martial Activations . | . . . . Shielding Activations . | . . . . Robots Disrupted . | . . . . Combat Hostiles . | . . . . Robots Corrupted . | . . . . Combat Hostiles . | . . . . Parts Fried . | . . . . Impact Corruptions . | . . . . Robots Melted . | . . . . Combat Hostiles . | . . . . Parts Melted 1 | . . . 1 Heat Transferred 450 | . . . 450 Parts Sabotaged . | . . . . Parts Stolen . | . . . . Parts Stripped . | . . . . Power Chain Reactions . | . . . . Alert | -11 -10 -10 -10 ------- Run | Yrd Mat Min Sub Maximum Alert Level . | . . . . Low Security (%) 100 | 100 100 100 . Level 1 . | . . . . Level 2 . | . . . . Level 3 . | . . . . Level 4 . | . . . . Level 5 . | . . . . High Security . | . . . . Max Security . | . . . . Peak Influence 50 | . 50 8 . Initial 8 | . . 8 . Average 3 | . 18 . . Influence Increases 292 | . 127 . 165 Destroy 0b10 Robot/C 220 | . 100 . 120 Destroy 0b10 Robot/NC 5 | . 5 . . Destroy Leader 22 | . 22 . . Lose Combat Pursuer 45 | . . . 45 Influence Decreases 217 | . 95 32 90 Entered New Map 24 | . . 24 . Time Decay 173 | . 95 8 70 Lost Part 20 | . . . 20 Squads Dispatched . | . . . . Investigation . | . . . . Extermination . | . . . . Reinforcement . | . . . . Assault . | . . . . Garrison . | . . . . Intercept . | . . . . Searches Triggered . | . . . . Construction Impeded . | . . . . Haulers Reinforced . | . . . . Active Scanning Responses . | . . . . Cargo Convoy Interrupts . | . . . . Stealth | -11 -10 -10 -10 --------- Run | Yrd Mat Min Sub Distress Signals 1 | . 1 . . Communications Jammed . | . . . . Distress Signals . | . . . . Times Spotted 26 | . 9 . 17 Peak Tracking Total 5 | . 5 . 5 Tactical Retreats 2 | . . . 2 Traps | -11 -10 -10 -10 ------- Run | Yrd Mat Min Sub Traps Triggered 3 | . 1 . 2 Indirectly . | . . . . Trap Hack Attempts . | . . . . Triggered . | . . . . Disarmed . | . . . . Reprogrammed . | . . . . Reused . | . . . . Traps Extracted . | . . . . Installed . | . . . . Triggered . | . . . . Machines | -11 -10 -10 -10 ---------- Run | Yrd Mat Min Sub Machines Disabled 1 | . . . 1 Max in Single Turn . | . . . . Machines Repaired . | . . . . Machines Dismantled . | . . . . Machines Sabotaged . | . . . . Overloaded Fab Kills . | . . . . Hacking | -11 -10 -10 -10 --------- Run | Yrd Mat Min Sub Machines Accessed . | . . . . Terminals . | . . . . Fabricators . | . . . . Repair Stations . | . . . . Recycling Units . | . . . . Scanalyzers . | . . . . Garrison Access . | . . . . Total Hacks . | . . . . Successful . | . . . . Failed . | . . . . Catastrophic . | . . . . Database Lockouts . | . . . . Manual . | . . . . Terminals . | . . . . Fabricators . | . . . . Repair Stations . | . . . . Recycling Units . | . . . . Scanalyzers . | . . . . Garrison Access . | . . . . Terminal Hacks . | . . . . Fabricator Hacks . | . . . . Repair Station Hacks . | . . . . Recycling Unit Hacks . | . . . . Scanalyzer . | . . . . Garrison Access Hacks . | . . . . Unauthorized Hacks . | . . . . Terminals . | . . . . Fabricators . | . . . . Repair Stations . | . . . . Recycling Units . | . . . . Scanalyzers . | . . . . Garrison Access . | . . . . Data Cores Recovered . | . . . . Used . | . . . . Hacking Detections . | . . . . Full Trace Events . | . . . . Feedback Events . | . . . . Feedback Blocked . | . . . . Robot Schematics Acquired . | . . . . Robots Built . | . . . . Authchips . | . . . . Time . | . . . . Total Robot Build Rating . | . . . . Part Schematics Acquired . | . . . . Parts Built . | . . . . Authchips . | . . . . Time . | . . . . Total Part Build Rating . | . . . . Part Studies Acquired . | . . . . Parts Repaired . | . . . . Time . | . . . . Parts Recycled . | . . . . Recycled Matter . | . . . . Retrieved Matter . | . . . . Retrieved Components . | . . . . Parts Scanalyzed . | . . . . Part Schematics Acquired . | . . . . Parts Damaged . | . . . . Bothacking | -11 -10 -10 -10 ------------ Run | Yrd Mat Min Sub Used RIF Installer . | . . . . Robots Hacked . | . . . . Non-combat . | . . . . Combat . | . . . . Robot Hacks Applied . | . . . . Relay Couplers Released . | . . . . Fabnet Peak Effective % . | . . . . Robots Rewired . | . . . . Allies Hacked . | . . . . Hacks Repelled . | . . . . Allies | -11 -10 -10 -10 -------- Run | Yrd Mat Min Sub Total Allies 4 | . . 2 2 Largest Group 2 | . . 2 2 Highest-Rated Group 49 | . . 49 38 Highest-Rated Ally 31 | . . 31 19 Total Orders . | . . . . Ally Attacks 10 | . . 1 9 Total Damage 121 | . . 21 100 Kills 2 | . . . 2 Allies Corrupted . | . . . . Allies Melted . | . . . . Intel | -11 -10 -10 -10 ------- Run | Yrd Mat Min Sub Active Infowar (turns) 2356 | . . 866 1490 Structural 2356 | . . 866 1490 Robot Analysis Total . | . . . . Derelict Logs Recovered 2 | . . 1 1 Drone Launches . | . . . . Drone Recoveries . | . . . . Exploration | -11 -10 -10 -10 ------------- Run | Yrd Mat Min Sub Turns Passed 2637 | 63 218 866 1490 Spaces Moved 1258 | 41 93 519 605 Core 256 | 16 . . 240 Treads 1002 | 25 93 519 365 Legs . | . . . . Wheels . | . . . . Hover . | . . . . Flight . | . . . . Fastest Speed 50 | 50 160 160 160 Average Speed 177 | 117 160 160 200 Slowest Speed 300 | 160 160 160 300 Overloaded Moves . | . . . . Propulsion Burnouts . | . . . . Robots Hopped . | . . . . Potential Cave-ins . | . . . . Cave-ins Triggered . | . . . . Exploration Rate (%) 43 | 3 36 97 36 Regions Visited 3 Branch Regions 2 Pre-discovered Areas . | . . . . Known Exits Taken 3 | 1 1 1 . Unknown Exits Taken . | . . . . Scrap Searched 4 | . . . 4 Spaces Dug . | . . . . Terrain Destroyed . | . . . . Melee . | . . . . Projectile . | . . . . AOE . | . . . . Terrain Rammed . | . . . . Walls Destroyed . | . . . . Machines Disabled . | . . . . Actions | -11 -10 -10 -10 --------- Run | Yrd Mat Min Sub Total 1503 | 56 130 555 762 Wait 115 | 4 3 33 75 Move 1255 | 40 92 518 605 Hop . | . . . . Pick Up 20 | 6 3 2 9 Fast Attach . | . . . . Attach 13 | 6 . 2 5 Detach 2 | . . . 2 Swap 2 | . . . 2 Drop 2 | . . . 2 Fire 87 | . 32 . 55 Melee 7 | . . . 7 Ram . | . . . . Kick . | . . . . Crush . | . . . . Escape Stasis . | . . . . Rewire . | . . . . Trap . | . . . . Miscellaneous . | . . . . Route ------- -11/Scrapyard -10/Materials -10/Mines (discovered 2 exits: *Mat / *Sub) -10/Subcaves (discovered 1 exit: *Rec) History --------- Turn | Location | Event 7 | -11/Scrapyard | Identified exit to Materials 7 | -11/Scrapyard | Discovered exit to Materials (range 15) 64 | -11/Scrapyard | Entered Materials 64 | -10/Materials | Evolved 1 slot: Utility x1 209 | -10/Materials | Identified exit to Mines 209 | -10/Materials | Discovered exit to Mines (range 11) 282 | -10/Materials | Entered Mines 286 | -10/Mines | Identified exit to Materials 286 | -10/Mines | Discovered exit to Materials (range 10) 291 | -10/Mines | Met a Derelict bent on vengeance 304 | -10/Mines | Build established: Hacker-Mutant 431 | -10/Mines | Assembled infested the area 436 | -10/Mines | Assisted by a Guerilla fighting off Assembled 597 | -10/Mines | Identified exit to Subcaves 597 | -10/Mines | Discovered exit to Subcaves (range 11) 694 | -10/Mines | Learned Materials emergency access door positions 1148 | -10/Mines | Entered Subcaves 1514 | -10/Subcaves | Shifting Twisted Machinery released Sub. Monowheel 1591 | -10/Subcaves | Shifting Twisted Machinery released Battle Rifle 1611 | -10/Subcaves | Learned Materials security intel 2143 | -10/Subcaves | Core integrity fell below 50% 2188 | -10/Subcaves | Visited triangular shrine 2203 | -10/Subcaves | Found Prototype Device 2204 | -10/Subcaves | Identified V3-11A's Pendant 2209 | -10/Subcaves | Befriended Subdweller 2299 | -10/Subcaves | Befriended Subdweller 2497 | -10/Subcaves | A swath of the cavern ceiling suddenly collapsed 2616 | -10/Subcaves | Core integrity fell below 20% 2624 | -10/Subcaves | Identified exit to Recycling 2624 | -10/Subcaves | Discovered exit to Recycling (range 15) 2638 | -10/Subcaves | Destroyed by Autobeam Turret with Autobeam Last Messages --------------- 02357_ Searching scrap... 02357_ Found Spk. Treads. 02357_ Found 38 Matter. 02362_ Acquired Spk. Treads. 02483_ Acquired Mak. System Shield. A swath of the cavern ceiling suddenly collapses. 02604_ V3-11A: "I hear you, but what does it all mean?!" 02604_ V3-11A destroyed. 02607_ Acquired 34 matter. 02608_ Hvy. Assault Rifle destroyed. 02611_ S-10 Pest destroyed. 02615_ Destroyed Flight Unit. 02615_ S-10 Pest destroyed. 02624_ Autobeam Turret destroyed. 02624_ EXIT=FOUND: RECYCLING 02625_ Mining Claw destroyed. 02632_ CH-39F(R) affixes Scrap Shield Fragment to Scrap Shield. Map ----- +----------------------------------------------------+ | ?????????????????????????????????????????????????? | | ?????????????????????????????????????????????????? | | ?????????????????????????????????????????????????? | | ?????????????????????????????????????????????????? | | ?????????????????????????????????????????????????? | | ?????????????????????????????????????????????????? | | ?????????????????????????????????????????????????? | | ?????????????????????????????????????????????????? | | ?????????????????????????????????????????????????? | | ?????????????????????????????????????????????????? | | ?????????????????????????????????????????????????? | | ?????????????????????????????????????????????????? | | ?????????????????????????????????????????????????? | | ?????????????????????????????????????????????????? | | ?????????????????????????????????????????????????? | | ?????????????????????????????????????????????????? | | ?????????????????????????????????????????????????? | | ?????????????????????????????????????????????????? | | ?????????????????##############??????????????????? | | ????????????????################?????????????????? | | ???????????????####"""""## ###?????????????????? | | ???????????#######""#"#""#" ##?????????????????? | | ???????????"##### #"#""""""; ##?????????????????? | | ???????????"#" ""#"###"#&#= ##?????????????????? | | ???????????"#""##"#"###### & ###?????????????????? | | ???????????"###"##""#### @& ###?????????????????? | | ???????????####" ###"### & ###????????????????? | | ?????????????####"##"## ##????????????????? | | ?????????????##"#"##### ! ???????????????? | | ????????????####"##### %= ?????????????? | | ????????????###""#### * [ R ?????????? | | ????????????## "####=%%== ## ## ?????????? | | #####???????### ##### =%##### ###?????????? | | #####???????## #" "##### ###??????????? | | ##???????## ## ????##### ## ??????????? | | #?????????### ## ???????### ???????????? | | ############## #" % t????????### ????????????? | | ############# ##" " "?????????## ????????????? | | # # ## # ##" "" "????????????????????????? | | ######>#????????????????????????? | | = #######????????????????????????? | | # # # # ######????????????????????????? | | ##### #### ########?????????????????????? | | ###### ##### ########???????????????????? | | ##### ###### # # ???????????????????? | | ############### ????????????????? | | """ ######## # ## ????????????????? | | """""#####" ######????????????????????? | | """ "" # ### ????????????????????? | | #"" "" "" ## ???????????????????? | +----------------------------------------------------+ Best States ------------- Heat Dissipation 25 Energy Generation 10 Energy Capacity 250 Matter Stores 300 Matter Capacity 300 Sight Range 16 Terrain Scan Density 10 Armor Coverage 150 Resistance: KI 35 Resistance: TH 35 Resistance: EX 35 Resistance: EM 35 Resistance: I 35 Resistance: S 35 Resistance: P 35 Evasion (%) 50 Recoil Reduction 2 Offensive Hacking 20 Item Schematics ----------------- None Robot Schematics ------------------ None Fabricated ------------ Nothing Repaired ---------- Nothing Studied --------- None Alien Tech Used ----------------- None Achievements -------------- None Challenges ------------ None Game ------ Seed DecoderGunThruster Manual? 0 Play Time 00:14:49 Cumulative 143.8 hours Start 2025.11.25 @ 15:39:31 End 2025.11.25 @ 16:10:31 Sessions 1 Manual Loads 0 Difficulty Explorer Special Mode None Game No. 172 Rogue 0 Adventurer 0 Explorer 172 Win Type - Total 0 Types 0/0/0/0/0/0/0/0/0/0 Lore% 69 Gallery% 66 Achievement% 52 Wizard Run 0 Options --------- Layout 1 ASCII 0 Keyboard 0 Movement Mouse Keybinds 0 Fullscreen 1 Font 24/Smallcaps Map View 50x35 Zoom Use 0% Tactical HUD 1 Map Filters NONE Filters NONE Steam 1 RUN: 5fa6ac57-bdab-44fd-b8bd-ac98316ecd24